Cogmind - Beta 13 @@@ ROGUE MODE // 2024.04.21 @ 16:16:04 Player: Cheeriohz Result: Self-destructed Performance ------------- Evolutions (3) 1500 Regions Visited (12) 2400 Robots Destroyed (128) 640 Value Destroyed (3950) 3950 Prototype IDs (15) 300 Alien Tech Used (0) 0 Bonus (841) 841 TOTAL SCORE: 9631 Bonus ------- High Alert Combat Kills 415 Follower Combat Kills 301 Entered Garrisons 200 Friendly Fire -75 Cogmind --------- Core Integrity 127/700 Matter 164/300 Energy 100/100 System Corruption 3% Temperature Cool (0) Movement Core (250) Ox4 Location -7/Factory Parts ------- > --- POWER (2) -------- (None) > --- PROPULSION (4) --- (None) > --- UTILITY (5) ------ Medium Storage Unit > --- WEAPON (2) ------- Great Maul > --- INVENTORY (10) --- Improved Light Armor Plating Authchip [Propulsion] Flak Gun Peak State ------------ > --- POWER ------------ Micro Nuclear Core Reinforced Fission Core > --- PROPULSION ------- Armored Treads Advanced Treads Advanced Treads Armored Medium Treads > --- UTILITY ---------- High-capacity Storage Unit Experimental Targeting Computer Advanced Weapon Cycler Advanced Shield Generator Advanced Hacking Suite > --- WEAPON ----------- Heavy Phase Cannon Enhanced Autogun > --- INVENTORY -------- Backup Power I Improved Treads Experimental Heat Sink High-capacity Matter Pod Structural Scanner Seismic Detector Improved Armor Integrity Analyzer Improved Light Armor Plating Improved Light Armor Plating High-powered Tractor Beam AS-neutralizer No. 17b Precision Shock Rifle Precision Shock Rifle Tesla Rifle Enhanced Autogun 8R-AWN's Boregun 8R-AWN's Boregun Improved Grenade Launcher Improved Grenade Launcher Great Maul [Rating: 70] Favorites ----------- Power Reinforced Fission Core Engine Improved Ion Engine Power Core Reinforced Fission Core Propulsion Improved Treads Treads Improved Treads Leg Advanced Myomer Leg Wheel Armored Wheel Utility High-capacity Storage Unit Device Hardlight Generator Storage High-capacity Storage Unit Processor Experimental Targeting Computer Hackware Advanced Hacking Suite Protection Improved Light Armor Plating Weapon Enhanced Autogun Energy Gun Small Laser Energy Cannon Heavy Phase Cannon Ballistic Gun Enhanced Autogun Ballistic Cannon Improved Light Cannon Launcher Rocket Launcher Impact Weapon Great Maul Slashing Weapon Axe Build | -11 -10 -10 -9 -9 -9 -8 -8 -8 -8 -7 -7 -7 ------- Run | Yrd Mat Min Mat Min Exi Min Mat Gar Mat Fac Was Fac Slots Evolved 6 | . . . 2 . . . 2 . . 2 . . Power 1 | . . . . . . . . . . 1 . . Propulsion 2 | . . . . . . . 2 . . . . . Utility 3 | . . . 2 . . . . . . 1 . . Weapon . | . . . . . . . . . . . . . Parts Attached 156 | 3 15 3 9 . 24 2 18 29 16 26 3 8 Power 9 | . 1 1 1 . 1 . 1 . . 4 . . Engine 5 | . 1 . 1 . 1 . . . . 2 . . Core 4 | . . 1 . . . . 1 . . 2 . . Reactor . | . . . . . . . . . . . . . Propulsion 32 | 2 3 . 2 . 8 2 8 2 4 . . 1 Treads 19 | . . . . . 4 . 8 2 4 . . 1 Leg 2 | . . . . . 2 . . . . . . . Wheel 11 | 2 3 . 2 . 2 2 . . . . . . Hover . | . . . . . . . . . . . . . Flight . | . . . . . . . . . . . . . Utility 47 | 1 3 2 2 . 9 . 5 8 3 10 1 3 Device 23 | 1 . . 1 . 4 . 2 5 . 9 1 . Storage 5 | . 1 1 . . 1 . 1 . . . . 1 Processor 3 | . . . . . 3 . . . . . . . Hackware 1 | . . . . . . . . . 1 . . . Protection 15 | . 2 1 1 . 1 . 2 3 2 1 . 2 Artifact . | . . . . . . . . . . . . . Weapon 68 | . 8 . 4 . 6 . 4 19 9 12 2 4 Energy Gun 3 | . 2 . . . . . . . . 1 . . Energy Cannon 4 | . . . . . . . . . 1 3 . . Ballistic Gun 33 | . . . 4 . 5 . 4 9 4 5 . 2 Ballistic Cannon 5 | . 5 . . . . . . . . . . . Launcher 10 | . 1 . . . 1 . . 3 3 . 2 . Special Weapon . | . . . . . . . . . . . . . Impact Weapon 9 | . . . . . . . . 3 1 3 . 2 Slashing Weapon 4 | . . . . . . . . 4 . . . . Piercing Weapon . | . . . . . . . . . . . . . Special Melee Weapon . | . . . . . . . . . . . . . Unidentified Prototypes 10 | . . . 1 . 6 . 1 . 1 1 . . Parts Lost 24 | . . 1 . . 9 . 1 . . 1 6 6 Power 3 | . . . . . 1 . . . . 1 1 . Propulsion 5 | . . . . . 3 . . . . . 1 1 Utility 10 | . . 1 . . 3 . 1 . . . 2 3 Weapon 6 | . . . . . 2 . . . . . 2 2 Highest Loss Streak 8 | . . 1 . . 8 . 1 . . 1 6 4 To Critical Strikes 4 | . . . . . 4 . . . . . . . Average Slot Usage (%) 92 | . 99 100 87 88 91 100 99 100 100 99 41 28 Engine 5 | . 13 1 9 11 11 11 3 . . 4 . . Core 5 | . . 12 1 . . . 5 9 9 8 6 . Treads 17 | . . . . . 4 . 33 36 36 30 11 3 Leg 1 | . . . . . 5 21 . . . . . . Wheel 8 | . 28 28 22 22 10 . 2 . . . . . Device 7 | . 2 . 10 11 9 11 8 9 1 9 8 5 Storage 10 | . 14 14 11 11 13 11 9 9 9 7 2 2 Processor 6 | . . . . . 9 22 10 9 9 7 2 . Hackware 1 | . . . . . . . . . 7 7 2 . Protection 7 | . 11 14 11 11 5 . 7 8 9 4 . 5 Energy Gun 1 | . 14 . . . . . . . . . . . Ballistic Gun 11 | . . . 20 22 21 22 18 11 15 7 1 2 Ballistic Cannon 4 | . 13 28 1 . . . . . . . . . Impact Weapon 1 | . . . . . . . . 3 2 2 1 6 Naked Turns 23 | . . . . . . . . . . . 23 . Heaviest Build 96 | 15 36 56 70 70 71 60 75 76 82 96 85 29 Greatest Support 96 | 20 24 24 24 24 60 60 91 96 96 91 91 70 Greatest Overweight (x) 5 | . 1 2 2 2 5 2 2 . . 1 . 4 Average Overweight (x) . | . . 1 2 2 1 . . . . . . . Largest Inventory Capacity 20 | 8 15 20 20 20 20 20 20 20 20 20 20 10 Average Capacity 18 | 8 13 18 20 20 20 20 20 20 20 20 11 6 Most Carried 20 | 7 15 19 20 20 20 20 20 20 20 20 20 5 Average Carried 16 | 5 11 16 19 20 13 19 19 19 19 19 11 4 Final Capacity 20 | 8 15 20 20 20 20 20 20 20 20 20 5 10 Final Carried 20 | 5 15 19 20 20 20 20 20 20 20 20 5 3 Class Distribution -------------------- 86% | Mutant 11% | Scavenger-Mutant Dominant Class ---------------- Mutant | -10/Materials Mutant | -10/Mines Mutant | -9/Materials Mutant | -9/Mines Mutant | -9/Exiles Scavenger-Mutant | -8/Mines Mutant | -8/Materials Mutant | -8/Garrison Mutant | -8/Materials Mutant | -7/Factory Mutant | -7/Waste Mutant | -7/Factory Resources | -11 -10 -10 -9 -9 -9 -8 -8 -8 -8 -7 -7 -7 ----------- Run | Yrd Mat Min Mat Min Exi Min Mat Gar Mat Fac Was Fac Matter Collected 4348 | 230 291 324 360 . 575 181 431 861 394 428 . 273 Remotely 424 | . . . . . . . . 284 . 140 . . Salvage Created 4987 | 101 481 121 632 . 468 191 740 952 458 444 . 399 Parts 342 | 5 26 2 47 . 76 15 43 65 33 24 . 6 Haulers Intercepted 7 | . 2 . 2 . . . 1 . 2 . . . Recyclers Shooed 2 | . 1 . . . . . 1 . . . . . Parts Field Recycled . | . . . . . . . . . . . . . Retrieved Matter . | . . . . . . . . . . . . . Parts Self-Destructed . | . . . . . . . . . . . . . Prevented . | . . . . . . . . . . . . . Kills | -11 -10 -10 -9 -9 -9 -8 -8 -8 -8 -7 -7 -7 ------- Run | Yrd Mat Min Mat Min Exi Min Mat Gar Mat Fac Was Fac Combat Hostiles Destroyed 105 | . 12 5 16 . 3 3 14 24 10 9 . 9 Melee 3 | . . . . . . . . . . . . 3 Guns 73 | . 7 . 16 . 1 3 14 17 6 8 . 1 Cannons 11 | . 5 5 . . . . . . . 1 . . AOE 13 | . . . . . 2 . . 7 4 . . . Classes Destroyed 19 | 2 5 . 2 . 3 2 2 2 . . . 1 Worker 2 | . 1 . . . . . . . . 1 . . Builder 2 | . . . . . . 1 . . . . . 1 Tunneler 2 | 1 . . . . . . . . . . . 1 Hauler 7 | . 2 . 2 . . . 1 . 2 . . . Recycler 4 | 1 1 . . . . . 1 . . . . 1 Operator 2 | . . . 1 . . . . . . . . 1 Turret 1 | . . . . . 1 . . . . . . . Watcher 2 | . . . . . . . 1 . 1 . . . Swarmer 28 | . 3 . 7 . . . 4 6 4 1 . 3 Cutter 2 | . . . . . . . . 2 . . . . Grunt 40 | . 6 5 6 . . 2 2 9 2 5 . 3 Brawler 1 | . . . . . . . . . . . . 1 Duelist 1 | . . . . . . 1 . . . . . . Sentry 18 | . . . 3 . . . 6 6 2 1 . . Hunter 5 | . . . . . . . 2 . 2 . . 1 Programmer 4 | . . . . . . . . 1 . 2 . 1 Subdweller 3 | . 3 . . . . . . . . . . . Zionite 1 | . . . . . 1 . . . . . . . Assembled 2 | . . . . . 2 . . . . . . . Best Kill Streak 6 | 2 3 1 6 . 2 4 5 4 3 3 . 3 Combat Bots Only 6 | . 3 1 6 . 2 3 5 4 2 3 . 3 Max Kills in Single Turn 3 | 1 2 1 2 . 2 2 1 3 2 1 . 2 Gunslinging 1 | . 1 . . . . . . . . . . . Exploded 3 | . . . . . 2 . . 3 2 . . . Melee 1 | . . . . . . . . . . . . 1 Uniques/NPCs Destroyed 4 | . . . . . 4 . . . . . . . 8R-AWN (-9/Exiles) EX-BIN (-9/Exiles) EX-DEC (-9/Exiles) EX-HEX (-9/Exiles) Combat | -11 -10 -10 -9 -9 -9 -8 -8 -8 -8 -7 -7 -7 -------- Run | Yrd Mat Min Mat Min Exi Min Mat Gar Mat Fac Was Fac Hostile Shots Fired 574 | . 37 19 49 . 103 2 53 79 48 68 3 113 Missed 154 | . 14 8 13 . 12 . 19 27 13 17 . 31 Damage Taken 6331 | . 289 151 401 . 1567 60 363 562 497 693 328 1420 Core 1201 | . 82 38 62 . 256 . 51 74 65 47 123 403 Absorbed by Shields 601 | . . . . . . . 96 180 . 253 72 . Redirected to Shielding 84 | . . . . . . . . . 16 . . 68 Ignored by Resistances 94 | . . . . . . . . . . . . 94 Regen/Repaired (Parts) 386 | . . . . . . . 121 . . 265 . . Core Remaining (%) 59 | 100 . 52 . . . 20 . . 65 . . . Volleys Fired 385 | 6 43 14 45 . 68 5 42 62 35 47 7 11 Largest 2 | 2 2 2 2 . 2 2 2 2 2 2 2 2 Hottest 115 | 90 80 78 46 . 60 60 50 50 90 115 72 55 Shots Fired 726 | 12 77 28 90 . 131 11 84 113 65 82 12 21 Gun 624 | 12 46 . 90 . 130 11 84 104 61 65 . 21 Cannon 77 | . 30 28 . . . . . . 2 17 . . Launcher 25 | . 1 . . . 1 . . 9 2 . 12 . Special . | . . . . . . . . . . . . . Kinetic 624 | . 30 28 90 . 130 11 84 104 61 65 . 21 Thermal 71 | 6 46 . . . . . . . 2 17 . . Explosive 25 | . 1 . . . 1 . . 9 2 . 12 . Electromagnetic 6 | 6 . . . . . . . . . . . . Robot Hit Streak 47 | 5 8 7 13 . 47 7 18 26 25 26 5 9 Robot Miss Streak 4 | 1 2 3 3 . 2 1 4 2 2 3 1 3 Penetration Max 2 | . . . . . . 2 . . . . . 1 Secondary Targets 7 | . 2 . . . . . 2 . . 2 . 1 Max Gunslinging Chain 1 | . 1 . . . . . 1 . . 1 . 1 Shots Hit Robots 563 | 8 55 20 64 . 112 8 64 88 48 51 10 35 Core Hits 213 | 2 25 7 22 . 30 5 29 42 20 20 4 7 Critical Kills 5 | . . . . . 2 3 . . . . . . Critical Parts Destroyed 23 | . . . . . 9 3 . 1 . . . 10 Critical Strikes 31 | 1 1 . . . 12 6 . 1 . . . 10 Burn 1 | 1 . . . . . . . . . . . . Destroy 21 | . . . . . 12 6 . 1 . . . 2 Blast 1 | . 1 . . . . . . . . . . . Smash 8 | . . . . . . . . . . . . 8 Melee Attacks 73 | . . . . . . . . 32 3 4 . 34 Impact 53 | . . . . . . . . 12 3 4 . 34 Slashing 20 | . . . . . . . . 20 . . . . Piercing . | . . . . . . . . . . . . . Sneak Attacks 2 | . . . . . . . . . . . . 2 Combat Hostiles . | . . . . . . . . . . . . . Follow-up Attacks . | . . . . . . . . . . . . . Damage Inflicted 12210 | 107 908 429 1001 . 1792 234 1029 2120 943 994 1097 1556 Guns 7835 | 107 375 . 1001 . 1718 234 1029 1537 712 873 . 249 Cannons 998 | . 485 429 . . . . . . . 84 . . Explosions 2164 | . 24 . . . 74 . . 505 231 37 1097 196 Melee 1171 | . . . . . . . . 78 . . . 1093 Ramming 42 | . 24 . . . . . . . . . . 18 Kinetic 8267 | . 485 429 1001 . 1718 234 1029 1537 712 873 . 249 Thermal 694 | 39 375 . . . . . . . . 84 . 196 Explosive 1968 | . 24 . . . 74 . . 505 231 37 1097 . Electromagnetic 68 | 68 . . . . . . . . . . . . Impact 1093 | . . . . . . . . . . . . 1093 Slashing 78 | . . . . . . . . 78 . . . . Piercing . | . . . . . . . . . . . . . Highest Corruption 3 | . . . . . 1 1 . . . 1 1 3 Average Corruption 1 | . . . . . 1 1 . . . 1 1 2 Corruption Purged . | . . . . . . . . . . . . . Corruption Blocked . | . . . . . . . . . . . . . Effects 11 | . . . . . 2 4 . . . 2 . 3 Message Errors 4 | . . . . . . 1 . . . 1 . 2 Matter Fused 1 | . . . . . . . . . . . . 1 Heat Flow Errors 2 | . . . . . . 2 . . . . . . Energy Discharges 2 | . . . . . 2 . . . . . . . Data Loss (minor) 1 | . . . . . . . . . . 1 . . Misfires 1 | . . . . . . 1 . . . . . . Overload Shots . | . . . . . . . . . . . . . Overflow Damage 909 | . 5 . . . . . . 87 66 6 46 699 Projectiles . | . . . . . . . . . . . . . Explosions 209 | . . . . . . . . 39 66 6 46 52 Melee 700 | . 5 . . . . . . 48 . . . 647 Knockbacks 9 | . 3 3 . . . . . . . . . 3 Impact 3 | . . . . . . . . . . . . 3 Kinetic 6 | . 3 3 . . . . . . . . . . Secondary . | . . . . . . . . . . . . . Self-Inflicted Damage 643 | . 12 . . . . . . . . 193 275 163 Shots 10 | . . . . . . . . . . 2 6 2 Rammed 14 | . 1 . . . . . . . . . . 13 Targets Rammed 14 | . 1 . . . . . . . . . . 13 Kicked . | . . . . . . . . . . . . . Crushed . | . . . . . . . . . . . . . Highest Temperature 499 | 180 201 150 5 . 90 126 97 184 190 499 128 112 Average Temperature 68 | 92 58 61 2 . 28 51 35 62 57 117 74 46 Received Heat Transfer 1342 | . 87 81 108 . . . 81 161 54 194 . 576 Effects 5 | . . . . . . . . . . 5 . . Shutdowns 5 | . . . . . . . . . . 5 . . Siege Activations . | . . . . . . . . . . . . . Robots Corrupted . | . . . . . . . . . . . . . Combat Hostiles . | . . . . . . . . . . . . . Parts Fried 7 | . 1 . . . . . . . . . . 6 Impact Corruptions 32 | . 1 . . . . . . . . . . 31 Robots Melted . | . . . . . . . . . . . . . Combat Hostiles . | . . . . . . . . . . . . . Parts Melted 1 | . 1 . . . . . . . . . . . Heat Transferred 1159 | 185 800 . . . . . . . . 74 . 100 Parts Sabotaged . | . . . . . . . . . . . . . Parts Stolen . | . . . . . . . . . . . . . Parts Stripped . | . . . . . . . . . . . . . Power Chain Reactions . | . . . . . . . . . . . . . Alert | -11 -10 -10 -9 -9 -9 -8 -8 -8 -8 -7 -7 -7 ------- Run | Yrd Mat Min Mat Min Exi Min Mat Gar Mat Fac Was Fac Peak Influence 1210 | 10 151 97 401 104 . 78 243 1210 706 244 67 335 Initial 589 | . 6 41 17 104 . . 29 85 589 229 51 12 Average 258 | 7 54 41 189 104 . 15 94 737 484 155 24 155 Maximum Alert Level 4 | . . . 2 . . . 1 4 3 1 . 1 Low Security (%) 60 | 100 100 100 39 100 . 100 90 11 . 63 100 67 Level 1 16 | . . . 59 . . . 9 5 15 36 . 32 Level 2 11 | . . . 1 . . . . 18 84 . . . Level 3 10 | . . . . . . . . 52 . . . . Level 4 2 | . . . . . . . . 11 . . . . Level 5 . | . . . . . . . . . . . . . High Security . | . . . . . . . . . . . . . Max Security . | . . . . . . . . . . . . . Squads Dispatched 20 | . 1 . 2 . . . 5 . 3 3 . 6 Investigation 4 | . . . . . . . . . 2 1 . 1 Extermination 3 | . . . . . . . . . . 2 . 1 Reinforcement 6 | . 1 . 2 . . . 1 . 1 . . 1 Assault . | . . . . . . . . . . . . . Garrison 7 | . . . . . . . 4 . . . . 3 Intercept . | . . . . . . . . . . . . . Searches Triggered . | . . . . . . . . . . . . . Construction Impeded . | . . . . . . . . . . . . . Haulers Reinforced . | . . . . . . . . . . . . . Active Scanning Responses . | . . . . . . . . . . . . . Cargo Convoy Interrupts . | . . . . . . . . . . . . . Stealth | -11 -10 -10 -9 -9 -9 -8 -8 -8 -8 -7 -7 -7 --------- Run | Yrd Mat Min Mat Min Exi Min Mat Gar Mat Fac Was Fac Distress Signals 10 | . 1 1 2 . . . 2 . 1 . . 3 Communications Jammed . | . . . . . . . . . . . . . Distress Signals . | . . . . . . . . . . . . . Times Spotted 179 | . 19 8 21 . 25 3 18 33 16 13 6 17 Peak Tracking Total 9 | . 5 2 5 . 9 2 6 4 3 3 6 5 Tactical Retreats 18 | . 2 2 1 . 8 . . 3 . 1 . 1 Traps | -11 -10 -10 -9 -9 -9 -8 -8 -8 -8 -7 -7 -7 ------- Run | Yrd Mat Min Mat Min Exi Min Mat Gar Mat Fac Was Fac Traps Triggered 10 | . 2 . . . . . . 2 2 4 . . Indirectly . | . . . . . . . . . . . . . Trap Hack Attempts . | . . . . . . . . . . . . . Triggered . | . . . . . . . . . . . . . Disarmed . | . . . . . . . . . . . . . Reprogrammed . | . . . . . . . . . . . . . Reused . | . . . . . . . . . . . . . Traps Extracted . | . . . . . . . . . . . . . Installed . | . . . . . . . . . . . . . Triggered . | . . . . . . . . . . . . . Machines | -11 -10 -10 -9 -9 -9 -8 -8 -8 -8 -7 -7 -7 ---------- Run | Yrd Mat Min Mat Min Exi Min Mat Gar Mat Fac Was Fac Machines Disabled 28 | . . . . . 14 . . 6 . 2 . 6 Max in Single Turn 5 | . . . . . 2 . . 2 . 2 . 5 Machines Repaired . | . . . . . . . . . . . . . Machines Dismantled . | . . . . . . . . . . . . . Machines Sabotaged . | . . . . . . . . . . . . . Overloaded Fab Kills . | . . . . . . . . . . . . . Hacking | -11 -10 -10 -9 -9 -9 -8 -8 -8 -8 -7 -7 -7 --------- Run | Yrd Mat Min Mat Min Exi Min Mat Gar Mat Fac Was Fac Machines Accessed 30 | . 5 1 2 . 1 . 6 2 6 5 . 2 Terminals 21 | . 5 . 2 . . . 4 2 5 2 . 1 Fabricators 2 | . . . . . . . . . . 1 . 1 Repair Stations 3 | . . . . . . . 1 . . 2 . . Recycling Units . | . . . . . . . . . . . . . Scanalyzers 1 | . . . . . . . . . 1 . . . Garrison Access 1 | . . . . . . . 1 . . . . . Total Hacks 79 | . 14 1 8 . 1 . 17 2 21 11 . 4 Successful 44 | . 8 1 2 . 1 . 11 2 8 8 . 3 Failed 35 | . 6 . 6 . . . 6 . 13 3 . 1 Catastrophic 5 | . . . 1 . . . 1 . 1 2 . . Database Lockouts . | . . . . . . . . . . . . . Manual 41 | . 8 . 6 . . . 9 . 13 2 . 3 Terminals 60 | . 14 . 8 . . . 12 2 19 2 . 3 Fabricators 2 | . . . . . . . . . . 1 . 1 Repair Stations 12 | . . . . . . . 4 . . 8 . . Recycling Units . | . . . . . . . . . . . . . Scanalyzers 2 | . . . . . . . . . 2 . . . Garrison Access 1 | . . . . . . . 1 . . . . . Terminal Hacks 22 | . 5 1 2 . 1 . 4 2 6 . . 1 Record 1 | . . . . . 1 . . . . . . . Robot Analysis 3 | . 2 . 1 . . . . . . . . . Prototype ID Bank 2 | . 2 . . . . . . . . . . . Open Door 2 | . . 1 . . . . . 1 . . . . Level Access Points 1 | . . . . . . . . . 1 . . . Branch Access Points 1 | . . . 1 . . . . . . . . . Emergency Access Points 2 | . . . . . . . . 1 . . . 1 Terminal Index 1 | . . . . . . . . . 1 . . . Alert Level 3 | . . . . . . . 2 . 1 . . . Unreport Threat 5 | . 1 . . . . . 2 . 2 . . . Recall Investigation 1 | . . . . . . . . . 1 . . . Fabricator Hacks 1 | . . . . . . . . . . 1 . . Network Status 1 | . . . . . . . . . . 1 . . Repair Station Hacks 11 | . . . . . . . 4 . . 7 . . Scan Component 5 | . . . . . . . 2 . . 3 . . Repair 5 | . . . . . . . 2 . . 3 . . Refit 1 | . . . . . . . . . . 1 . . Recycling Unit Hacks . | . . . . . . . . . . . . . Scanalyzer 1 | . . . . . . . . . 1 . . . Insert Component 1 | . . . . . . . . . 1 . . . Garrison Access Hacks 1 | . . . . . . . 1 . . . . . Unlock Access 1 | . . . . . . . 1 . . . . . Unauthorized Hacks 8 | . 3 . . . . . 2 . 1 . . 2 Terminals 7 | . 3 . . . . . 2 . 1 . . 1 Botnet 7 | . 3 . . . . . 2 . 1 . . 1 Fabricators 1 | . . . . . . . . . . . . 1 Recompile 1 | . . . . . . . . . . . . 1 Repair Stations . | . . . . . . . . . . . . . Recycling Units . | . . . . . . . . . . . . . Scanalyzers . | . . . . . . . . . . . . . Garrison Access . | . . . . . . . . . . . . . Data Cores Recovered . | . . . . . . . . . . . . . Used . | . . . . . . . . . . . . . Hacking Detections 22 | . 5 . 2 . . . 4 1 6 3 . 1 Full Trace Events . | . . . . . . . . . . . . . Feedback Events . | . . . . . . . . . . . . . Feedback Blocked . | . . . . . . . . . . . . . Robot Schematics Acquired . | . . . . . . . . . . . . . Robots Built . | . . . . . . . . . . . . . Authchips . | . . . . . . . . . . . . . Time . | . . . . . . . . . . . . . Total Robot Build Rating . | . . . . . . . . . . . . . Part Schematics Acquired . | . . . . . . . . . . . . . Parts Built . | . . . . . . . . . . . . . Authchips . | . . . . . . . . . . . . . Time . | . . . . . . . . . . . . . Total Part Build Rating . | . . . . . . . . . . . . . Parts Repaired 5 | . . . . . . . 2 . . 3 . . Time 260 | . . . . . . . 106 . . 154 . . Parts Recycled . | . . . . . . . . . . . . . Recycled Matter . | . . . . . . . . . . . . . Retrieved Matter . | . . . . . . . . . . . . . Retrieved Components . | . . . . . . . . . . . . . Parts Scanalyzed . | . . . . . . . . . . . . . Part Schematics Acquired . | . . . . . . . . . . . . . Parts Damaged . | . . . . . . . . . . . . . Bothacking | -11 -10 -10 -9 -9 -9 -8 -8 -8 -8 -7 -7 -7 ------------ Run | Yrd Mat Min Mat Min Exi Min Mat Gar Mat Fac Was Fac Used RIF Installer . | . . . . . . . . . . . . . Robots Hacked . | . . . . . . . . . . . . . Non-combat . | . . . . . . . . . . . . . Combat . | . . . . . . . . . . . . . Robot Hacks Applied . | . . . . . . . . . . . . . Relay Couplers Released 3 | . . . . . . . . 3 . . . . Programmers 3 | . . . . . . . . 3 . . . . Fabnet Peak Effective % . | . . . . . . . . . . . . . Robots Rewired 6 | . . . . . . . . 6 . . . . Allies Hacked . | . . . . . . . . . . . . . Hacks Repelled . | . . . . . . . . . . . . . Allies | -11 -10 -10 -9 -9 -9 -8 -8 -8 -8 -7 -7 -7 -------- Run | Yrd Mat Min Mat Min Exi Min Mat Gar Mat Fac Was Fac Total Allies 7 | . . . . . . . . 6 . . 1 . Largest Group 6 | . . . . . . . . 5 6 . 1 . Highest-Rated Group 149 | . . . . . . . . 133 149 . 31 . Highest-Rated Ally 39 | . . . . . . . . 39 39 . 31 . Total Orders 2 | . . . 1 . 1 . . . . . . . EXPLORE 2 | . . . 1 . 1 . . . . . . . Ally Attacks 71 | . . . . . . . . 39 27 . 5 . Total Damage 2202 | . . . . . . . . 1636 462 . 104 . Kills 14 | . . . . . . . . 9 5 . . . Allies Corrupted . | . . . . . . . . . . . . . Allies Melted 1 | . . . . . . . . . 1 . . . Turrets Deployed 1 | . . . . . . . . 1 . . . . Intel | -11 -10 -10 -9 -9 -9 -8 -8 -8 -8 -7 -7 -7 ------- Run | Yrd Mat Min Mat Min Exi Min Mat Gar Mat Fac Was Fac Robot Analysis Total 3 | . 2 . 1 . . . . . . . . . Derelict Logs Recovered 3 | . . 3 . . . . . . . . . . Drone Launches 7 | . . . 4 . 3 . . . . . . . Drone Recoveries . | . . . . . . . . . . . . . Exploration | -11 -10 -10 -9 -9 -9 -8 -8 -8 -8 -7 -7 -7 ------------- Run | Yrd Mat Min Mat Min Exi Min Mat Gar Mat Fac Was Fac Turns Passed 10095 | 40 785 1123 652 83 1563 399 1010 1646 743 1372 98 581 Spaces Moved 5454 | 17 580 559 332 70 912 316 454 824 368 622 120 280 Core 268 | . . . . . . . . . . . 108 160 Treads 2377 | . . . . . 61 . 370 824 368 622 12 120 Legs 584 | 8 . . . . 270 306 . . . . . . Wheels 2225 | 9 580 559 332 70 581 10 84 . . . . . Hover . | . . . . . . . . . . . . . Flight . | . . . . . . . . . . . . . Fastest Speed 50 | 80 80 105 120 120 120 120 120 156 155 157 50 50 Average Speed 137 | 98 95 114 120 120 138 120 149 158 157 174 60 146 Slowest Speed 400 | 120 105 120 120 120 400 120 232 162 162 237 157 250 Overloaded Moves . | . . . . . . . . . . . . . Propulsion Burnouts . | . . . . . . . . . . . . . Robots Hopped . | . . . . . . . . . . . . . Cave-ins Triggered . | . . . . . . . . . . . . . Exploration Rate (%) 52 | 3 86 95 35 18 89 77 47 89 40 19 79 7 Regions Visited 12 Branch Regions 4 Pre-discovered Areas 3 | . . 2 . . 1 . . . . . . . Known Exits Taken 3 | . . . 1 . . . 1 . 1 . . . Unknown Exits Taken 6 | 1 1 1 . 1 1 1 . . . . . . Scrap Searched 5 | . . 3 . . . 2 . . . . . . Spaces Dug 33 | . . . . . . . . 10 5 14 . 4 Terrain Destroyed 234 | . 9 2 . . 14 10 . 22 24 65 52 36 Melee 17 | . . . . . . . . 6 3 4 . 4 Projectile 42 | . 2 2 . . 9 10 . . 2 15 . 2 AOE 174 | . 7 . . . 5 . . 16 19 46 52 29 Terrain Rammed . | . . . . . . . . . . . . . Walls Destroyed . | . . . . . . . . . . . . . Machines Disabled . | . . . . . . . . . . . . . Actions | -11 -10 -10 -9 -9 -9 -8 -8 -8 -8 -7 -7 -7 --------- Run | Yrd Mat Min Mat Min Exi Min Mat Gar Mat Fac Was Fac Total 7375 | 28 735 1012 506 69 1102 331 732 1021 488 855 134 362 Wait 1058 | . 68 432 88 . 48 3 189 32 49 138 . 11 Move 5441 | 16 579 558 331 69 911 315 453 821 367 622 119 280 Hop . | . . . . . . . . . . . . . Pick Up 93 | . 13 3 14 . 22 3 12 6 6 8 2 4 Fast Attach 40 | 2 9 1 3 . 9 . 6 . 3 4 . 3 Attach 24 | . . 1 1 . 10 2 3 . . 2 1 4 Detach 21 | 1 4 1 2 . 9 . 2 . . 2 . . Swap 92 | 1 6 1 5 . 5 . 9 29 13 20 2 1 Drop 103 | 2 12 1 17 . 20 3 16 8 12 8 3 1 Fire 385 | 6 43 14 45 . 68 5 42 62 35 47 7 11 Melee 73 | . . . . . . . . 32 3 4 . 34 Ram 1 | . 1 . . . . . . . . . . . Kick . | . . . . . . . . . . . . . Crush 13 | . . . . . . . . . . . . 13 Escape Stasis . | . . . . . . . . . . . . . Rewire 31 | . . . . . . . . 31 . . . . Trap . | . . . . . . . . . . . . . Miscellaneous . | . . . . . . . . . . . . . Route ------- -11/Scrapyard -10/Materials (discovered 4 exits: *Mat x3 / *Min) -10/Mines (discovered 2 exits: *Mat x2) -9/Materials (discovered 2 exits: *Min x2) -9/Mines -9/Exiles (discovered 2 exits: [*Min x2]) -8/Mines -8/Materials -8/Garrison (discovered 4 exits: *Mat x4) -8/Materials (discovered 3 exits: *Fac x3) -7/Factory (discovered 3 exits: [*Fac] / [*Sto] / [*Low]) -7/Waste -7/Factory History --------- Turn | Location | Event 20 | -11/Scrapyard | Discovered new exit (range 3) 41 | -11/Scrapyard | Entered Materials 141 | -10/Materials | Discovered new exit (range 5) 302 | -10/Materials | Discovered new exit (range 7) 307 | -10/Materials | Build established: Mutant 387 | -10/Materials | Discovered new exit (range 14) 626 | -10/Materials | Discovered new exit (range 11) 741 | -10/Materials | Derelicts attacked the area 826 | -10/Materials | Entered Mines 848 | -10/Mines | Met a Derelict bent on vengeance 901 | -10/Mines | Discovered new exit (range 9) 1112 | -10/Mines | Learned Materials stockpile data 1174 | -10/Mines | Excavation squad dispatched 1174 | -10/Mines | A large section of the Mines collapsed 1424 | -10/Mines | Excavation squad dispatched 1706 | -10/Mines | Discovered new exit (range 7) 1825 | -10/Mines | Found the Drone Emporium 1832 | -10/Mines | Found Prototype Device 1865 | -10/Mines | Learned location of Storage (-7) 1949 | -10/Mines | Entered Materials 1949 | -9/Materials | Evolved 2 slots: Utility x2 1962 | -9/Materials | Identified Decoy Drone Bay 2538 | -9/Materials | Identified exit to Mines 2601 | -9/Materials | Entered Mines 2679 | -9/Mines | Deemed a non-threat by the Exiles lab entrance 2679 | -9/Mines | Discovered new exit (range 5) 2684 | -9/Mines | Entered Exiles 2702 | -9/Exiles | Discovered new exit (range 15) 2717 | -9/Exiles | Met 8R-AWN 2735 | -9/Exiles | Met EX-HEX 2783 | -9/Exiles | Met EX-DEC 2828 | -9/Exiles | Lost 3 allies 2834 | -9/Exiles | Discovered new exit (range 10) 3043 | -9/Exiles | Visited The Gauntlet 3346 | -9/Exiles | Attacked by the Exiles 3503 | -9/Exiles | Core integrity fell below 50% 3558 | -9/Exiles | Lost 8 parts (1p2n3u2w) 3577 | -9/Exiles | Destroyed 8R-AWN 3595 | -9/Exiles | Found Prototype Device 3595 | -9/Exiles | Identified AS-neutralizer No. 17b 3750 | -9/Exiles | Found Prototype Ballistic Gun 3750 | -9/Exiles | Identified 8R-AWN's Boregun 3758 | -9/Exiles | Found 8R-AWN's Boregun 3773 | -9/Exiles | Found Prototype Processor 3773 | -9/Exiles | Identified Exp. Targeting Computer 3980 | -9/Exiles | Destroyed EX-BIN 3998 | -9/Exiles | Destroyed EX-DEC 4035 | -9/Exiles | Build established: Scavenger-Mutant 4037 | -9/Exiles | Destroyed EX-HEX 4090 | -9/Exiles | Found Deploy-a-Sentry 4095 | -9/Exiles | Found Prototype Processor 4169 | -9/Exiles | Learned location of Zion (-7) 4199 | -9/Exiles | Found Prototype Protection 4247 | -9/Exiles | Left Exiles lab with Deploy-a-Sentry 4247 | -9/Exiles | Entered Mines 4628 | -8/Mines | Discovered new exit (range 9) 4646 | -8/Mines | Entered Materials 4646 | -8/Materials | Evolved 2 slots: Propulsion x2 4972 | -8/Materials | Repaired Imp. Light Armor Plating 5041 | -8/Materials | Repaired Adv. Weapon Cycler 5190 | -8/Materials | Build established: Mutant 5271 | -8/Materials | Garrison activated, responded to threat 5624 | -8/Materials | Garrison activated, responded to threat 5654 | -8/Materials | Identified exit to Garrison 5656 | -8/Materials | Entered Garrison 5692 | -8/Garrison | Triggered checkpoint 5859 | -8/Garrison | DAS Turret deployed 5893 | -8/Garrison | Triggered checkpoint 5917 | -8/Garrison | Triggered checkpoint 5925 | -8/Garrison | Triggered checkpoint 5932 | -8/Garrison | Triggered checkpoint 6061 | -8/Garrison | Discovered new exit (range 9) 6078 | -8/Garrison | Triggered checkpoint 6300 | -8/Garrison | Triggered checkpoint 6412 | -8/Garrison | Discovered new exit (range 10) 6747 | -8/Garrison | Attempted to access garrison exit controls, blocked by remote lockdown 6861 | -8/Garrison | Attempted to access garrison exit controls, blocked by remote lockdown 7044 | -8/Garrison | Triggered checkpoint 7231 | -8/Garrison | Discovered new exit (range 13) 7238 | -8/Garrison | Triggered checkpoint 7284 | -8/Garrison | Discovered new exit (range 3) 7302 | -8/Garrison | Entered Materials 7302 | -8/Materials | Accompanied by 6 allies 7353 | -8/Materials | Identified Exp. Core Analyzer 7517 | -8/Materials | Lost 6 allies 7947 | -8/Materials | Identified exit to Factory 8045 | -8/Materials | Entered Factory 8045 | -7/Factory | Evolved 2 slots: Power x1, Utility x1 8274 | -7/Factory | Discovered new exit (range 7) 8313 | -7/Factory | Repaired Rnf. Fission Core 8744 | -7/Factory | Repaired Enh. Autogun 8783 | -7/Factory | Repaired Deuterium Engine 8800 | -7/Factory | Discovered new exit (range 15) 9016 | -7/Factory | Discovered new exit (range 8) 9417 | -7/Factory | Sucked down chute 9417 | -7/Factory | Entered Waste 9418 | -7/Waste | Met a frightened Derelict 9433 | -7/Waste | Spotted C-40 Crusher 9449 | -7/Waste | Spotted C-40 Crusher 9452 | -7/Waste | Crushed by Compactor (1 part destroyed, 2 dropped) 9455 | -7/Waste | Crushed by Compactor (1 part destroyed, 2 dropped) 9456 | -7/Waste | Spotted C-40 Crusher 9458 | -7/Waste | Crushed by Compactor (1 part destroyed, 2 dropped) 9487 | -7/Waste | Spotted C-40 Crusher 9489 | -7/Waste | Lost 6 parts (1p1n2u2w) 9497 | -7/Waste | Spotted C-40 Crusher 9500 | -7/Waste | Spotted C-40 Crusher 9511 | -7/Waste | Discovered new exit (range 10) 9515 | -7/Waste | Entered Factory 9860 | -7/Factory | Core integrity fell below 50% 9867 | -7/Factory | Garrison activated, responded to threat 9956 | -7/Factory | Lost 4 parts (2u2w) 9992 | -7/Factory | Core integrity fell below 20% 10096 | -7/Factory | Self-destructed Last Messages --------------- 09982_ S-27 Virus system corrupted by crushing effect. 09985_ Destroyed VTOL Module. 09985_ Destroyed Lgt. Nuclear Core. 09985_ S-27 Virus system corrupted by crushing effect. 09986_ S-27 Virus system terminally corrupted. 09991_ Destroyed VTOL Module. 09991_ S-27 Virus system corrupted by crushing effect. 09993_ S-27 Virus misfires. 09994_ S-27 Virus suffers critical hit (Smash). 09994_ Destroyed Lgt. Nuclear Core. 09994_ Destroyed VTOL Module. 09994_ S-27 Virus system corrupted by crushing effect. 09994_ S-27 Virus destroyed. 10001_ K-01 Serf collects debris. 10016_ XF1O#:R>ABFLU7TAELKF|BFYTDU> CCOM4NVHW3 10018_ K-01 Serf collects debris. 10031_ K-01 Serf cleans the Assembly Bed. 10041_ K-01 Serf collects debris. 10060_ Destroyed Imp. Hover Unit. 10060_ W-25 Informer system corrupted by crushing effect. Map ----- +----------------------------------------------------+ | ?????????????????????????????????????????????????? | | ?????????????????????????????????????????????????? | | ?????????????????????????????????????????????????? | | ?????????????????????????????????????????????????? | | ?????????????????????????????????????????????????? | | ?????????????????????????????????????????????????? | | ?????????????????????????????????????????????????? | | ?????????????????????????????????????????????????? | | ?????????????????????????????????????????????????? | | ?????????????????????????????????????????????????? | | ?????????????????????????????????????????????????? | | ?????????????????????????????????????????????????? | | ?????????????????????????????????????????????????? | | ?????????????????????????????????????????????????? | | ?????????????????????????????????????????????????? | | ?????????????????? "?????????????????????????????? | | ?????????????????? ""?????????????? ???????????? | | ?????????????????? ????????????? ???????????? | | ?????????????????# ??????????? ???????????? | | ?????????????????# """?????????? #???????????? | | ?????????????????# """ ?######## #???????????? | | ?????????????????# """ ?# #???????????? | | ?????????????????# # #???????????? | | ?????????????????# """ # #???????????? | | ?????????????????# """ bl #???????????? | | ???????########### """ #@ #???????????? | | ???????#! # # k ###+###????????????? | | ???????# [ [ #+###### #??????????????????? | | ???????# # #??????????????????? | | ???????# """""" # #??????????????????? | | ???????# """""" +% #??????????????????? | | ???????# """""" # #??????????????????? | | ???????# """""" # #??????????????????? | | ???????# %% # ########??????????????????? | | ???##+######+##### #?????????????????????????? | | #?????????????????????????? | | ########??????????????????? | | """ # #??????????????????? | | """ """ """ T" # ""#??????????????????? | | """ """ """ """ # ""#??????????????????? | | #### """ """ """ # "#??????????????????? | | ???# # ""#??????????????????? | | ????? """ """ """ """ # ""#??????????????????? | | ????? """ """ """ """ # #??????????????????? | | ???????"" ?"" """ """ + #??????????????????? | | ???#?? # #??????????????????? | | ???# """ """ """ """ # #??????????????????? | | ???# """ """ """ """ # """ #??????????????????? | | #### """ """ """ """ # """ #??????????????????? | | + """ #??????????????????? | +----------------------------------------------------+ Best States ------------- Heat Dissipation 54 Energy Generation 29 Energy Capacity 485 Matter Stores 300 Matter Capacity 400 Sight Range 16 Terrain Scan Density 10 Armor Coverage 375 Resistance: TH 15 Propulsion Shielding 66 Utility Shielding 66 Weapon Cycling 25 Evasion (%) 55 Targeting Accuracy 12 Target Analysis 6 Recoil Reduction 4 Salvage Targeting 1 Offensive Hacking 14 Authchip Count 1 Item Schematics ----------------- None Robot Schematics ------------------ None Fabricated ------------ Nothing Alien Tech Used ----------------- None Achievements -------------- None Challenges ------------ None Game ------ Seed LargeDeliveryMultirail Manual? 0 Play Time 01:26:47 Cumulative 146.7 hours Start 2024.04.21 @ 13:39:50 End 2024.04.21 @ 16:16:04 Sessions 1 Manual Loads 0 Difficulty Rogue Special Mode None Game No. 131 Rogue 131 Adventurer 0 Explorer 0 Win Type - Total 3 Types 2/0/0/1/0/0/0/0/0 Lore% 55 Gallery% 72 Achievement% 55 Wizard Run 0 Options --------- Layout 2 ASCII 0 Keyboard 1 Movement Numpad Keybinds 0 Fullscreen 1 Font 32/SmallcapsGlow Map View 77x44 Zoom Use 0% Tactical HUD 1 Map Filters NONE Filters NONE Steam 1 RUN: 32a627db-d35d-493f-a6e2-0c859231a506